[Event "1st Bangalore GM-Open-B 2024"]
[Site "Bangalore"]
[Date "2024.01.19"]
[Round "3.4"]
[White "Selvamurugan B"]
[Black "Vaidyanathan, Kannan"]
[Result "1-0"]
[ECO "A11"]
[WhiteElo "1920"]
[BlackElo "1512"]
[Annotator "NA RC"]
[PlyCount "153"]
[EventDate "2024.01.20"]
[EventType "swiss"]
[EventCountry "IND"]
[SourceTitle "playchess.com"]
[Source "ChessBase"]
[SourceQuality "1"]
[TimeControl "3600+30"]

1. b3 {[%emt 0:00:03]} d5 {[%emt 0:00:51]} 2. Bb2 {[%emt 0:00:07]} Nf6 {[%emt 0:00:20]} 3. e3 {[%emt 0:00:08]} g6 {[%emt 0:01:37]} 4. c4 {[%emt 0:00:21]} c6 {[%emt 0:04:56]} 5. cxd5 {[%emt 0:01:33]} cxd5 {[%emt 0:00:24]} 6. Bb5+ {[%emt 0:01:59]} Bd7 {[%emt 0:00:58]} 7. Bxd7+ {[%emt 0:02:16]} Nbxd7 {[%emt 0:05:27]} 8. Nc3 {[%emt 0:00:06]} Nc5 {[%emt 0:05:24]} 9. Qe2 {[%emt 0:10:28]} a6 {[%emt 0:12:43]} 10. Nf3 {[%emt 0:00:32]} Bg7 {[%emt 0:00:55]} 11. Rc1 {[%emt 0:00:33]} O-O {[%emt 0:01:55]} 12. O-O {[%emt 0:00:20]} Nfe4 {[%emt 0:05:30]} 13. d3 {[%emt 0:01:00]} Nxc3 {[%emt 0:01:14]} 14. Bxc3 {[%emt 0:00:14]} b6 {[%emt 0:06:57]} 15. Bxg7 {[%emt 0:00:55]} Kxg7 {[%emt 0:00:06]} 16. Rc3 {[%emt 0:00:10]} f6 {[%emt 0:06:04]} 17. Rfc1 {[%emt 0:00:39]} Qd7 {[%emt 0:01:11]} 18. h3 {[%emt 0:02:33]} Rfc8 {[%emt 0:01:31]} 19. Qc2 {[%emt 0:00:32]} Re8 {[%emt 0:01:59]} 20. d4 {[%emt 0:03:37]} Ne6 {[%emt 0:01:02]} 21. Ne1 {[%emt 0:00:44]} Ra7 {[%emt 0:01:42]} 22. Nd3 {[%emt 0:02:33]} Rb8 {[%emt 0:02:00]} 23. Nb2 {[%emt 0:04:20]} Rbb7 {[%emt 0:01:32]} 24. Na4 {[%emt 0:00:24]} b5 {[%emt 0:00:32]} 25. Nc5 {[%emt 0:00:10]} Nxc5 {[%emt 0:00:06]} 26. Rxc5 {[%emt 0:00:08]} Kf7 {[%emt 0:02:07]} 27. Rc6 {[%emt 0:00:47]} b4 {[%emt 0:00:30]} 28. h4 {[%emt 0:01:19]} a5 {[%emt 0:00:32]} 29. h5 {[%emt 0:00:27]} Kg7 {[%emt 0:00:07]} 30. hxg6 {[%emt 0:00:13]} hxg6 {[%emt 0:00:05]} 31. g3 {[%emt 0:05:31]} Ra8 {[%emt 0:01:16]} 32. Qe2 {[%emt 0:02:15]} a4 {[%emt 0:01:52]} 33. Qf3 {[%emt 0:02:06]} axb3 {[%emt 0:00:17]} 34. axb3 {[%emt 0:00:02]} Ra1 {[%emt 0:01:21]} 35. Kg2 {[%emt 0:00:23]} Rxc1 {[%emt 0:00:32]} 36. Rxc1 {[%emt 0:00:01]} Rb8 {[%emt 0:00:22]} 37. Rc5 {[%emt 0:00:49]} Rd8 {[%emt 0:01:26]} 38. g4 {[%emt 0:04:35]} Qd6 {[%emt 0:00:39]} 39. Qg3 {[%emt 0:05:02]} e5 {[%emt 0:01:16]} 40. Rb5 {[%emt 0:08:00]} Rb8 {[%emt 0:00:16]} 41. Rxb8 {[%emt 0:00:22]} Qxb8 {[%emt 0:00:07]} 42. g5 {[%emt 0:00:02]} Qd6 {[%emt 0:00:47]} 43. gxf6+ {[%emt 0:01:50]} Kxf6 {[%emt 0:00:04]} 44. Qh4+ {[%emt 0:00:23]} Kf5 {[%emt 0:01:04]} 45. dxe5 {[%emt 0:00:32]} Qxe5 {[%emt 0:00:06]} 46. Qxb4 {[%emt 0:00:11]} g5 {[%emt 0:00:42]} 47. Kf3 {[%emt 0:03:52]} Qh2 {[%emt 0:00:36]} 48. Qf8+ {[%emt 0:00:46]} Kg6 {[%emt 0:00:37]} 49. Qe8+ {[%emt 0:00:17]} Kf6 {[%emt 0:00:27]} 50. Ke2 {[%emt 0:00:35]} Qd6 {[%emt 0:00:31]} 51. Qh8+ {[%emt 0:00:51]} Kg6 {[%emt 0:00:13]} 52. Qd4 {[%emt 0:00:18]} Qc6 {[%emt 0:00:24]} 53. Qd3+ {[%emt 0:00:15]} Kf6 {[%emt 0:00:18]} 54. b4 {[%emt 0:00:14]} Qe6 {[%emt 0:01:22]} 55. Qd4+ {[%emt 0:00:10]} Kf7 {[%emt 0:00:29]} 56. b5 {[%emt 0:00:11]} Qd6 {[%emt 0:00:35]} 57. Qa7+ {[%emt 0:00:39]} Kf8 {[%emt 0:00:26]} 58. b6 {[%emt 0:00:35]} Qc5 {[%emt 0:00:11]} 59. Qb8+ {[%emt 0:01:28]} Ke7 {[%emt 0:00:37]} 60. Qc7+ {[%emt 0:00:20]} Qxc7 {[%emt 0:00:07]} 61. bxc7 {[%emt 0:00:02]} Kd7 {[%emt 0:00:10]} 62. Kf3 {[%emt 0:00:05]} Kxc7 {[%emt 0:00:04]} 63. Kg4 {[%emt 0:00:03]} Kd6 {[%emt 0:00:10]} 64. Kxg5 {[%emt 0:00:07]} Ke5 {[%emt 0:00:08]} 65. f4+ {[%emt 0:00:36]} Ke4 {[%emt 0:00:05]} 66. f5 {[%emt 0:00:02]} Kxe3 {[%emt 0:00:05]} 67. f6 {[%emt 0:00:05]} d4 {[%emt 0:00:03]} 68. f7 {[%emt 0:00:05]} d3 {[%emt 0:00:02]} 69. f8=Q {[%emt 0:00:06]} d2 {[%emt 0:00:05]} 70. Qf1 {[%emt 0:00:05]} Kd4 {[%emt 0:00:04]} 71. Kf4 {[%emt 0:00:13]} Kc3 {[%emt 0:00:06]} 72. Ke3 {[%emt 0:00:12]} Kc2 {[%emt 0:00:08]} 73. Qd3+ {[%emt 0:00:07]} Kc1 {[%emt 0:00:04]} 74. Qxd2+ {[%emt 0:00:04]} Kb1 {[%emt 0:00:04]} 75. Kd3 {[%emt 0:00:05]} Ka1 {[%emt 0:00:05]} 76. Kc3 {[%emt 0:00:03]} Kb1 {[%emt 0:00:04]} 77. Qb2# {[%emt 0:00:03]} 1-0

[Event "1st Bangalore GM-Open-B 2024"]
[Site "Bangalore"]
[Date "2024.01.19"]
[Round "3.5"]
[White "Nigash G"]
[Black "Ananya Raman"]
[Result "1-0"]
[ECO "E60"]
[WhiteElo "1887"]
[BlackElo "1505"]
[Annotator "NA RC"]
[PlyCount "99"]
[EventDate "2024.01.20"]
[EventType "swiss"]
[EventCountry "IND"]
[SourceTitle "playchess.com"]
[Source "ChessBase"]
[SourceQuality "1"]
[TimeControl "3600+30"]

1. Nf3 {[%emt 0:00:07]} Nf6 {[%emt 0:01:06]} 2. g3 {[%emt 0:00:42]} g6 {[%emt 0:00:21]} 3. b3 {[%emt 0:00:07]} Bg7 {[%emt 0:00:34]} 4. Bb2 {[%emt 0:00:10]} O-O {[%emt 0:00:31]} 5. Bg2 {[%emt 0:00:07]} d6 {[%emt 0:00:50]} 6. d4 {[%emt 0:00:18]} Nbd7 {[%emt 0:01:52]} 7. O-O {[%emt 0:00:56]} e5 {[%emt 0:01:28]} 8. dxe5 {[%emt 0:00:15]} Ng4 {[%emt 0:00:10]} 9. Qd2 {[%emt 0:00:33]} Ngxe5 {[%emt 0:01:27]} 10. Nxe5 {[%emt 0:00:12]} Nxe5 {[%emt 0:04:04]} 11. c4 {[%emt 0:00:14]} Rb8 {[%emt 0:05:48]} 12. f4 {[%emt 0:03:50]} Nd7 {[%emt 0:02:41]} 13. Nc3 {[%emt 0:00:20]} a6 {[%emt 0:03:12]} 14. Nd5 {[%emt 0:04:53]} f5 {[%emt 0:06:38]} 15. e4 {[%emt 0:08:47]} fxe4 {[%emt 0:01:08]} 16. Bxe4 {[%emt 0:03:26]} Nf6 {[%emt 0:03:17]} 17. Rfe1 {[%emt 0:04:17]} Bg4 {[%emt 0:05:02]} 18. Bg2 {[%emt 0:06:55]} c6 {[%emt 0:02:02]} 19. Ne3 {[%emt 0:02:09]} Bf5 {[%emt 0:06:55]} 20. Nxf5 {[%emt 0:00:49]} gxf5 {[%emt 0:00:08]} 21. Rad1 {[%emt 0:00:24]} Qb6+ {[%emt 0:01:59]} 22. Bd4 {[%emt 0:00:08]} Qc7 {[%emt 0:00:04]} 23. Qd3 {[%emt 0:06:49]} Ne8 {[%emt 0:03:31]} 24. Bf2 {[%emt 0:01:40]} Rd8 {[%emt 0:02:50]} 25. Re6 {[%emt 0:01:06]} Qa5 {[%emt 0:01:49]} 26. Re7 {[%emt 0:01:01]} Rb8 {[%emt 0:01:50]} 27. a4 {[%emt 0:05:39]} Bf6 {[%emt 0:03:55]} 28. Rd7 {[%emt 0:00:51]} Rf7 {[%emt 0:00:13]} 29. Rxf7 {[%emt 0:00:19]} Kxf7 {[%emt 0:00:05]} 30. Bh3 {[%emt 0:00:59]} Ng7 {[%emt 0:00:25]} 31. c5 {[%emt 0:00:36]} dxc5 {[%emt 0:01:46]} 32. Bxf5 {[%emt 0:03:51]} Qc3 {[%emt 0:01:10]} 33. Qxc3 {[%emt 0:00:34]} Bxc3 {[%emt 0:00:04]} 34. Bxh7 {[%emt 0:00:05]} Ne6 {[%emt 0:01:17]} 35. Rd3 {[%emt 0:01:07]} Bd4 {[%emt 0:02:30]} 36. f5 {[%emt 0:01:32]} Bxf2+ {[%emt 0:02:46]} 37. Kxf2 {[%emt 0:00:06]} Nd4 {[%emt 0:00:05]} 38. h4 {[%emt 0:00:17]} Rh8 {[%emt 0:02:12]} 39. Bg6+ {[%emt 0:00:12]} Kf6 {[%emt 0:00:02]} 40. Rc3 {[%emt 0:01:55]} a5 {[%emt 0:01:55]} 41. Rxc5 {[%emt 0:01:15]} Nxb3 {[%emt 0:00:04]} 42. Rc4 {[%emt 0:00:08]} Rd8 {[%emt 0:00:47]} 43. g4 {[%emt 0:00:17]} Rd4 {[%emt 0:00:48]} 44. g5+ {[%emt 0:00:24]} Kg7 {[%emt 0:00:29]} 45. Rc3 {[%emt 0:00:16]} Nd2 {[%emt 0:00:32]} 46. Ke3 {[%emt 0:00:20]} Rd7 {[%emt 0:00:32]} 47. h5 {[%emt 0:00:09]} Nf1+ {[%emt 0:00:25]} 48. Kf2 {[%emt 0:00:13]} Nd2 {[%emt 0:00:18]} 49. Re3 {[%emt 0:00:16]} Rd8 {[%emt 0:00:35]} 50. f6+ {[%emt 0:00:07]} 1-0

[Event "1st Bangalore GM-Open-B 2024"]
[Site "Bangalore"]
[Date "2024.01.19"]
[Round "4.1"]
[White "Bhuvan Krishna Prasanth"]
[Black "Samyak Dharewa"]
[Result "1-0"]
[ECO "B40"]
[WhiteElo "1595"]
[BlackElo "1972"]
[Annotator "NA RC"]
[PlyCount "47"]
[EventDate "2024.01.20"]
[EventType "swiss"]
[EventCountry "IND"]
[SourceTitle "playchess.com"]
[Source "ChessBase"]
[SourceQuality "1"]
[TimeControl "3600+30"]

1. e4 {[%emt 0:00:03]} c5 {[%emt 0:00:02]} 2. Nf3 {[%emt 0:00:09]} e6 {[%emt 0:00:02]} 3. c4 {[%emt 0:00:08]} Nc6 {[%emt 0:01:41]} 4. d4 {[%emt 0:00:10]} cxd4 {[%emt 0:00:49]} 5. Nxd4 {[%emt 0:00:08]} Nf6 {[%emt 0:00:16]} 6. Nxc6 {[%emt 0:00:49]} bxc6 {[%emt 0:00:46]} 7. Bd3 {[%emt 0:00:09]} d5 {[%emt 0:01:45]} 8. cxd5 {[%emt 0:00:09]} cxd5 {[%emt 0:00:07]} 9. exd5 {[%emt 0:00:10]} Nxd5 {[%emt 0:01:42]} 10. O-O {[%emt 0:02:24]} Bd6 {[%emt 0:00:26]} 11. Nd2 {[%emt 0:04:13]} O-O {[%emt 0:00:41]} 12. Nf3 {[%emt 0:00:35]} Bb7 {[%emt 0:01:59]} 13. b3 {[%emt 0:07:08]} f5 {[%emt 0:15:36]} 14. Bb2 {[%emt 0:02:26]} Nf4 {[%emt 0:02:30]} 15. Bc4 {[%emt 0:01:01]} Nxg2 {[%emt 0:02:10]} 16. Bxe6+ {[%emt 0:00:19]} Kh8 {[%emt 0:00:17]} 17. Kxg2 {[%emt 0:00:41]} Be4 {[%emt 0:10:03]} 18. Rg1 {[%emt 0:03:25]} Qh4 {[%emt 0:04:04]} 19. Qxd6 {[%emt 0:00:35]} Bxf3+ {[%emt 0:00:20]} 20. Kf1 {[%emt 0:00:12]} Bg4 {[%emt 0:01:24]} 21. Rg3 {[%emt 0:01:17]} Rae8 {[%emt 0:03:59]} 22. Kg1 {[%emt 0:01:11]} Re7 {[%emt 0:02:41]} 23. Bxf5 {[%emt 0:02:06]} Bxf5 {[%emt 0:00:41]} 24. Bxg7+ {[%emt 0:00:06]} 1-0

[Event "1st Bangalore GM-Open-B 2024"]
[Site "Bangalore"]
[Date "2024.01.19"]
[Round "4.2"]
[White "Akshaya Sathi"]
[Black "Selvamurugan B"]
[Result "0-1"]
[ECO "B15"]
[WhiteElo "1579"]
[BlackElo "1920"]
[Annotator "NA RC"]
[PlyCount "174"]
[EventDate "2024.01.20"]
[EventType "swiss"]
[EventCountry "IND"]
[SourceTitle "playchess.com"]
[Source "ChessBase"]
[SourceQuality "1"]
[TimeControl "3600+30"]

1. e4 {[%emt 0:00:03]} g6 {[%emt 0:02:59]} 2. d4 {[%emt 0:00:59]} Bg7 {[%emt 0:00:06]} 3. Nc3 {[%emt 0:00:19]} c6 {[%emt 0:00:09]} 4. Be3 {[%emt 0:00:48]} d5 {[%emt 0:00:15]} 5. Qd2 {[%emt 0:01:02]} Nf6 {[%emt 0:03:39]} 6. e5 {[%emt 0:02:27]} Ng4 {[%emt 0:00:06]} 7. Bg5 {[%emt 0:01:30]} h6 {[%emt 0:01:20]} 8. Bh4 {[%emt 0:01:13]} h5 {[%emt 0:00:20]} 9. h3 {[%emt 0:04:38]} Nh6 {[%emt 0:00:09]} 10. O-O-O {[%emt 0:00:23]} a5 {[%emt 0:00:37]} 11. Nf3 {[%emt 0:05:04]} a4 {[%emt 0:00:11]} 12. Bd3 {[%emt 0:02:57]} a3 {[%emt 0:02:07]} 13. b3 {[%emt 0:03:27]} Bf5 {[%emt 0:00:49]} 14. Rhe1 {[%emt 0:04:58]} Qa5 {[%emt 0:05:23]} 15. Bg5 {[%emt 0:10:26]} Bxd3 {[%emt 0:00:45]} 16. Qxd3 {[%emt 0:00:20]} e6 {[%emt 0:00:37]} 17. Nh4 {[%emt 0:04:13]} Nf5 {[%emt 0:01:11]} 18. Nxf5 {[%emt 0:00:12]} gxf5 {[%emt 0:00:05]} 19. g4 {[%emt 0:09:59]} f4 {[%emt 0:12:28]} 20. Bxf4 {[%emt 0:02:58]} Nd7 {[%emt 0:01:38]} 21. Bg5 {[%emt 0:01:42]} Bh6 {[%emt 0:01:13]} 22. Bxh6 {[%emt 0:00:12]} Rxh6 {[%emt 0:00:02]} 23. g5 {[%emt 0:01:12]} Rg6 {[%emt 0:00:01]} 24. h4 {[%emt 0:00:44]} O-O-O {[%emt 0:00:27]} 25. Ne2 {[%emt 0:00:52]} Rh8 {[%emt 0:01:02]} 26. Qf3 {[%emt 0:01:07]} Rg7 {[%emt 0:00:45]} 27. Nf4 {[%emt 0:00:33]} Nf8 {[%emt 0:00:51]} 28. Re3 {[%emt 0:04:57]} Qb4 {[%emt 0:01:26]} 29. c3 {[%emt 0:03:42]} Qe7 {[%emt 0:00:02]} 30. Kc2 {[%emt 0:00:45]} Ng6 {[%emt 0:00:26]} 31. Nxg6 {[%emt 0:00:06]} fxg6 {[%emt 0:00:05]} 32. Qf6 {[%emt 0:00:28]} Rf8 {[%emt 0:00:01]} 33. Qxe7 {[%emt 0:00:11]} Rxe7 {[%emt 0:00:26]} 34. Re2 {[%emt 0:01:52]} Ref7 {[%emt 0:00:06]} 35. Rf1 {[%emt 0:00:40]} Rf4 {[%emt 0:00:10]} 36. Rh1 {[%emt 0:00:24]} Rxf2 {[%emt 0:00:14]} 37. Rh2 {[%emt 0:00:02]} Rf1 {[%emt 0:00:30]} 38. b4 {[%emt 0:01:08]} R8f3 {[%emt 0:00:10]} 39. Rd2 {[%emt 0:00:53]} Kc7 {[%emt 0:05:49]} 40. Rd3 {[%emt 0:00:31]} Rf4 {[%emt 0:00:02]} 41. Kb3 {[%emt 0:00:14]} Rb1+ {[%emt 0:01:16]} 42. Kxa3 {[%emt 0:00:15]} Rf8 {[%emt 0:00:06]} 43. Rb2 {[%emt 0:00:20]} Rh1 {[%emt 0:00:05]} 44. Rdd2 {[%emt 0:01:10]} Rxh4 {[%emt 0:01:59]} 45. Rh2 {[%emt 0:00:26]} Rhf4 {[%emt 0:00:38]} 46. Kb3 {[%emt 0:00:18]} R8f5 {[%emt 0:00:28]} 47. Rbg2 {[%emt 0:00:12]} Rf3 {[%emt 0:01:18]} 48. a4 {[%emt 0:00:38]} R5f4 {[%emt 0:01:49]} 49. Kc2 {[%emt 0:00:29]} Kb6 {[%emt 0:00:53]} 50. Kd2 {[%emt 0:00:45]} Ka6 {[%emt 0:00:11]} 51. Kc2 {[%emt 0:00:25]} b6 {[%emt 0:00:16]} 52. Kd2 {[%emt 0:00:16]} Kb7 {[%emt 0:01:03]} 53. Kc2 {[%emt 0:00:10]} c5 {[%emt 0:00:59]} 54. Rd2 {[%emt 0:01:23]} cxb4 {[%emt 0:00:48]} 55. cxb4 {[%emt 0:00:02]} Ra3 {[%emt 0:00:10]} 56. a5 {[%emt 0:00:48]} bxa5 {[%emt 0:00:25]} 57. bxa5 {[%emt 0:00:01]} Rxa5 {[%emt 0:00:13]} 58. Kc3 {[%emt 0:00:19]} Ra4 {[%emt 0:00:17]} 59. Rhf2 {[%emt 0:01:18]} Raxd4 {[%emt 0:01:15]} 60. Rxd4 {[%emt 0:00:29]} Rxf2 {[%emt 0:00:03]} 61. Kb4 {[%emt 0:00:23]} Kc6 {[%emt 0:00:18]} 62. Rd1 {[%emt 0:00:34]} Rf4+ {[%emt 0:00:07]} 63. Kc3 {[%emt 0:00:06]} Rf5 {[%emt 0:00:05]} 64. Kd4 {[%emt 0:00:10]} Rxg5 {[%emt 0:00:10]} 65. Rc1+ {[%emt 0:00:04]} Kd7 {[%emt 0:00:05]} 66. Ra1 {[%emt 0:00:06]} Rg4+ {[%emt 0:00:05]} 67. Kc5 {[%emt 0:00:06]} Rc4+ {[%emt 0:00:07]} 68. Kb5 {[%emt 0:00:01]} Re4 {[%emt 0:00:52]} 69. Ra7+ {[%emt 0:00:14]} Ke8 {[%emt 0:00:06]} 70. Rg7 {[%emt 0:00:13]} Rxe5 {[%emt 0:00:10]} 71. Rxg6 {[%emt 0:00:01]} Kf7 {[%emt 0:00:09]} 72. Rg1 {[%emt 0:00:05]} h4 {[%emt 0:00:37]} 73. Kc5 {[%emt 0:02:16]} h3 {[%emt 0:00:39]} 74. Kd4 {[%emt 0:00:07]} Re4+ {[%emt 0:00:21]} 75. Kd3 {[%emt 0:00:04]} h2 {[%emt 0:00:07]} 76. Rh1 {[%emt 0:00:04]} Rh4 {[%emt 0:00:03]} 77. Ke3 {[%emt 0:00:10]} e5 {[%emt 0:00:06]} 78. Rf1+ {[%emt 0:00:31]} Ke6 {[%emt 0:00:05]} 79. Rh1 {[%emt 0:00:19]} d4+ {[%emt 0:00:07]} 80. Kd3 {[%emt 0:00:09]} Kd5 {[%emt 0:00:03]} 81. Kd2 {[%emt 0:00:03]} e4 {[%emt 0:00:06]} 82. Ke2 {[%emt 0:00:02]} e3 {[%emt 0:00:07]} 83. Kd3 {[%emt 0:00:06]} Ke5 {[%emt 0:00:06]} 84. Ke2 {[%emt 0:00:06]} Ke4 {[%emt 0:00:04]} 85. Ke1 {[%emt 0:00:15]} d3 {[%emt 0:00:04]} 86. Kf1 {[%emt 0:00:10]} Kf3 {[%emt 0:00:10]} 87. Ke1 {[%emt 0:00:03]} Ra4 {[%emt 0:00:15]} 0-1

[Event "1st Bangalore GM-Open-B 2024"]
[Site "Bangalore"]
[Date "2024.01.19"]
[Round "4.3"]
[White "Niranjan, Mocharla"]
[Black "Nigash G"]
[Result "1-0"]
[ECO "D02"]
[WhiteElo "1572"]
[BlackElo "1887"]
[Annotator "NA RC"]
[PlyCount "77"]
[EventDate "2024.01.20"]
[EventType "swiss"]
[EventCountry "IND"]
[SourceTitle "playchess.com"]
[Source "ChessBase"]
[SourceQuality "1"]
[TimeControl "3600+30"]

1. d4 {[%emt 0:00:03]} d5 {[%emt 0:00:08]} 2. Nf3 {[%emt 0:09:31]} Bf5 {[%emt 0:00:13]} 3. e3 {[%emt 0:00:23]} e6 {[%emt 0:00:25]} 4. Be2 {[%emt 0:02:00]} Bd6 {[%emt 0:00:16]} 5. Nbd2 {[%emt 0:00:15]} Nd7 {[%emt 0:00:22]} 6. c4 {[%emt 0:00:56]} c6 {[%emt 0:00:23]} 7. b3 {[%emt 0:00:45]} Ne7 {[%emt 0:05:30]} 8. Nh4 {[%emt 0:01:09]} Bg6 {[%emt 0:00:56]} 9. Nxg6 {[%emt 0:00:28]} hxg6 {[%emt 0:03:12]} 10. h3 {[%emt 0:05:50]} Nf5 {[%emt 0:00:28]} 11. Nf3 {[%emt 0:04:31]} Nf6 {[%emt 0:07:08]} 12. c5 {[%emt 0:08:41]} Bc7 {[%emt 0:01:18]} 13. b4 {[%emt 0:02:03]} Ne4 {[%emt 0:03:02]} 14. Bd3 {[%emt 0:04:53]} Nfg3 {[%emt 0:03:47]} 15. Rg1 {[%emt 0:05:00]} Nf5 {[%emt 0:04:53]} 16. Qc2 {[%emt 0:00:27]} Nf6 {[%emt 0:03:23]} 17. Bb2 {[%emt 0:03:05]} Ne7 {[%emt 0:01:56]} 18. Ne5 {[%emt 0:00:35]} Bxe5 {[%emt 0:00:23]} 19. dxe5 {[%emt 0:00:01]} Nd7 {[%emt 0:00:08]} 20. Bd4 {[%emt 0:01:49]} b6 {[%emt 0:01:31]} 21. Rb1 {[%emt 0:02:09]} b5 {[%emt 0:04:31]} 22. a4 {[%emt 0:01:17]} a6 {[%emt 0:00:20]} 23. Ra1 {[%emt 0:01:48]} O-O {[%emt 0:00:48]} 24. g4 {[%emt 0:01:35]} Qc7 {[%emt 0:05:19]} 25. f4 {[%emt 0:00:41]} Rfb8 {[%emt 0:02:00]} 26. a5 {[%emt 0:00:14]} Kf8 {[%emt 0:00:44]} 27. h4 {[%emt 0:00:14]} Ke8 {[%emt 0:05:46]} 28. h5 {[%emt 0:00:47]} Nf8 {[%emt 0:00:12]} 29. Qh2 {[%emt 0:01:43]} Kd7 {[%emt 0:00:14]} 30. Ke2 {[%emt 0:00:43]} Re8 {[%emt 0:01:12]} 31. Raf1 {[%emt 0:00:19]} gxh5 {[%emt 0:01:56]} 32. gxh5 {[%emt 0:00:26]} g6 {[%emt 0:00:16]} 33. Qh4 {[%emt 0:03:30]} gxh5 {[%emt 0:01:08]} 34. Rg7 {[%emt 0:00:43]} Neg6 {[%emt 0:06:42]} 35. Qxh5 {[%emt 0:02:35]} Re7 {[%emt 0:00:19]} 36. f5 {[%emt 0:01:46]} exf5 {[%emt 0:02:24]} 37. Bxf5+ {[%emt 0:00:51]} Ke8 {[%emt 0:02:31]} 38. Rg8 {[%emt 0:01:25]} Nxe5 {[%emt 0:00:50]} 39. Rxf8+ {[%emt 0:00:11]} 1-0

[Event "1st Bangalore GM-Open-B 2024"]
[Site "Bangalore"]
[Date "2024.01.19"]
[Round "4.4"]
[White "Dhrikshu K Vasant"]
[Black "Sivathanujan, S."]
[Result "1/2-1/2"]
[ECO "D05"]
[WhiteElo "1557"]
[BlackElo "1821"]
[Annotator "NA RC"]
[PlyCount "149"]
[EventDate "2024.01.20"]
[EventType "swiss"]
[EventCountry "IND"]
[SourceTitle "playchess.com"]
[Source "ChessBase"]
[SourceQuality "1"]
[TimeControl "3600+30"]

1. d4 {[%emt 0:02:35]} d5 {[%emt 0:00:09]} 2. e3 {[%emt 0:00:25]} c5 {[%emt 0:00:12]} 3. c3 {[%emt 0:00:37]} Nc6 {[%emt 0:00:41]} 4. Nf3 {[%emt 0:00:56]} Nf6 {[%emt 0:02:18]} 5. Bd3 {[%emt 0:00:18]} Bg4 {[%emt 0:01:37]} 6. Nbd2 {[%emt 0:02:00]} e6 {[%emt 0:01:07]} 7. O-O {[%emt 0:00:18]} Bd6 {[%emt 0:01:10]} 8. dxc5 {[%emt 0:01:08]} Bxc5 {[%emt 0:00:07]} 9. e4 {[%emt 0:00:51]} O-O {[%emt 0:02:26]} 10. Qc2 {[%emt 0:02:43]} dxe4 {[%emt 0:06:20]} 11. Nxe4 {[%emt 0:00:43]} Bxf3 {[%emt 0:04:05]} 12. Nxc5 {[%emt 0:03:00]} Qd5 {[%emt 0:02:41]} 13. gxf3 {[%emt 0:17:38]} Qxc5 {[%emt 0:00:11]} 14. Bf4 {[%emt 0:02:44]} Rac8 {[%emt 0:01:35]} 15. Qe2 {[%emt 0:02:06]} Rfd8 {[%emt 0:03:08]} 16. Rad1 {[%emt 0:00:42]} a6 {[%emt 0:05:21]} 17. Kh1 {[%emt 0:02:30]} Nd5 {[%emt 0:02:12]} 18. Bg3 {[%emt 0:04:09]} Nce7 {[%emt 0:05:57]} 19. Rg1 {[%emt 0:06:14]} Ng6 {[%emt 0:00:34]} 20. Bxg6 {[%emt 0:01:24]} hxg6 {[%emt 0:00:40]} 21. Rd4 {[%emt 0:01:04]} b5 {[%emt 0:04:34]} 22. Rgd1 {[%emt 0:01:39]} Re8 {[%emt 0:00:56]} 23. Be5 {[%emt 0:09:58]} f6 {[%emt 0:00:49]} 24. Bg3 {[%emt 0:00:33]} Kf7 {[%emt 0:00:08]} 25. a4 {[%emt 0:00:23]} Rcd8 {[%emt 0:00:59]} 26. axb5 {[%emt 0:01:41]} axb5 {[%emt 0:00:02]} 27. c4 {[%emt 0:00:18]} bxc4 {[%emt 0:00:55]} 28. Rxc4 {[%emt 0:00:25]} Qb5 {[%emt 0:02:00]} 29. Qc2 {[%emt 0:00:09]} Rd7 {[%emt 0:01:05]} 30. Rc5 {[%emt 0:01:28]} Qb7 {[%emt 0:01:15]} 31. Kg2 {[%emt 0:00:27]} Ra8 {[%emt 0:00:46]} 32. Rd3 {[%emt 0:01:10]} Ra6 {[%emt 0:02:16]} 33. Rc8 {[%emt 0:00:44]} Ra8 {[%emt 0:01:06]} 34. Rxa8 {[%emt 0:01:31]} Qxa8 {[%emt 0:00:04]} 35. Ra3 {[%emt 0:00:16]} Qd8 {[%emt 0:02:06]} 36. Qc6 {[%emt 0:00:43]} g5 {[%emt 0:03:49]} 37. Ra8 {[%emt 0:01:15]} Qe7 {[%emt 0:00:17]} 38. Qc8 {[%emt 0:00:29]} e5 {[%emt 0:03:00]} 39. Qg8+ {[%emt 0:00:22]} Kg6 {[%emt 0:00:01]} 40. Re8 {[%emt 0:00:20]} Qf7 {[%emt 0:00:22]} 41. Qh8 {[%emt 0:00:15]} Ne7 {[%emt 0:01:34]} 42. Rf8 {[%emt 0:00:26]} Qd5 {[%emt 0:00:24]} 43. h4 {[%emt 0:00:52]} gxh4 {[%emt 0:02:37]} 44. Qxh4 Qd4 {[%emt 0:00:05]} 45. f4 {[%emt 0:01:30]} Qe4+ {[%emt 0:05:30]} 46. Kh2 {[%emt 0:00:12]} Qf5 {[%emt 0:00:21]} 47. fxe5 {[%emt 0:00:11]} Nd5 {[%emt 0:00:32]} 48. Qh3 {[%emt 0:01:56]} Qxh3+ {[%emt 0:00:28]} 49. Kxh3 {[%emt 0:00:02]} Rb7 {[%emt 0:00:17]} 50. exf6 {[%emt 0:00:12]} gxf6 {[%emt 0:00:15]} 51. Rb8 {[%emt 0:00:06]} Rh7+ {[%emt 0:00:59]} 52. Kg4 {[%emt 0:00:16]} f5+ {[%emt 0:00:18]} 53. Kf3 {[%emt 0:00:09]} f4 {[%emt 0:00:20]} 54. Bxf4 {[%emt 0:01:30]} Rf7 {[%emt 0:00:05]} 55. Rg8+ {[%emt 0:00:07]} Kh7 {[%emt 0:00:24]} 56. Rg4 {[%emt 0:00:09]} Nf6 {[%emt 0:00:56]} 57. Rg5 {[%emt 0:00:39]} Rb7 {[%emt 0:00:27]} 58. Be5 {[%emt 0:00:31]} Rb3+ {[%emt 0:00:19]} 59. Bc3 {[%emt 0:00:50]} Kh6 {[%emt 0:00:29]} 60. Kf4 {[%emt 0:00:49]} Ne8 {[%emt 0:01:06]} 61. Rg8 {[%emt 0:01:21]} Nc7 {[%emt 0:00:11]} 62. Ke4 {[%emt 0:00:57]} Rb5 {[%emt 0:01:23]} 63. f4 {[%emt 0:00:18]} Na6 {[%emt 0:01:31]} 64. f5 {[%emt 0:00:44]} Nc5+ {[%emt 0:00:17]} 65. Kf4 {[%emt 0:00:28]} Nd3+ {[%emt 0:00:16]} 66. Kg4 {[%emt 0:00:18]} Nf2+ {[%emt 0:00:08]} 67. Kf4 {[%emt 0:00:35]} Nd3+ {[%emt 0:00:10]} 68. Ke3 {[%emt 0:00:37]} Nxb2 {[%emt 0:00:18]} 69. f6 {[%emt 0:00:30]} Nc4+ {[%emt 0:00:55]} 70. Kf4 {[%emt 0:00:13]} Nd6 {[%emt 0:00:12]} 71. Rh8+ {[%emt 0:00:46]} Kg6 {[%emt 0:00:28]} 72. Rg8+ {[%emt 0:00:10]} Kh6 {[%emt 0:00:15]} 73. Rh8+ {[%emt 0:00:48]} Kg6 {[%emt 0:00:02]} 74. Rg8+ {[%emt 0:00:06]} Kh6 {[%emt 0:00:17]} 75. Rh8+ {[%emt 0:00:48]} 1/2-1/2